lending/lending_fUSD_20240411
["ID","MTS","AMOUNT","RATE_DAILY","PERIOD"]
[322196156,1712869933758,-500.0,0.00028219,2]
[322196157,1712869933768,-500.0,0.00028219,2]
[322196158,1712869933777,-500.0,0.00028219,2]
[322196159,1712869933786,-304.57550509,0.00028219,2]
[322196160,1712869933795,-1242.22,0.00028219,2]
[322196161,1712869933805,-500.0,0.00028219,2]
[322196162,1712869933814,-610.16,0.00028219,2]
[322196163,1712869933823,-500.0,0.00028219,2]
[322196164,1712869933833,-686.6,0.00028219,2]
[322196165,1712869933843,-964.51,0.00028219,2]
[322196166,1712869933852,-500.0,0.00028219,2]
[322196167,1712869933861,-552.23,0.00028219,2]
[322196168,1712869933872,-500.0,0.00028219,2]
[322196169,1712869933882,-500.0,0.00028219,2]
[322196170,1712869933892,-500.0,0.00028219,2]
[322196171,1712869933901,-993.58,0.00028219,2]
[322196172,1712869933911,-500.0,0.00028219,2]
[322196173,1712869933921,-675.23,0.00028219,2]
[322196174,1712869933930,-500.0,0.00028219,2]
[322196175,1712869933940,-500.0,0.00028219,2]
[322196176,1712869933949,-500.0,0.00028219,2]
[322196177,1712869933958,-1308.49,0.00028219,2]
[322196178,1712869933967,-564.56,0.00028219,2]
[322196179,1712869933977,-703.03,0.00028219,2]
[322196180,1712869933986,-560.79,0.00028219,2]
[322196181,1712869933995,-500.0,0.00028219,2]
[322196182,1712869934004,-561.9,0.00028219,2]
[322196183,1712869934013,-500.0,0.00028219,2]
[322196184,1712869934022,-1067.51,0.00028219,2]
[322196185,1712869934032,-598.24,0.00028219,2]
[322196186,1712869934041,-500.0,0.00028219,2]
[322196187,1712869934050,-500.0,0.00028219,2]
[322196188,1712869934059,-500.0,0.00028219,2]
[322196189,1712869934068,-500.0,0.00028219,2]
[322196190,1712869934078,-691.29,0.00028219,2]
[322196191,1712869934087,-500.0,0.00028219,2]
[322196192,1712869934096,-500.0,0.00028219,2]
[322196193,1712869934106,-500.0,0.00028219,2]
[322196194,1712869934115,-500.0,0.00028219,2]
[322196195,1712869934124,-704.14,0.00028219,2]
[322196196,1712869934135,-500.0,0.00028219,2]
[322196197,1712869934144,-645.96,0.00028219,2]
[322196198,1712869934154,-1172.44,0.00028219,2]
[322196199,1712869934163,-151.0,0.00028219,7]
[322196200,1712869934172,-500.0,0.00028219,2]
[322196201,1712869934182,-500.0,0.00028219,2]
[322196202,1712869934191,-500.0,0.00028219,2]
[322196203,1712869934200,-500.0,0.00028219,2]
[322196204,1712869934209,-1403.78,0.00028219,2]
[322196205,1712869934222,-500.0,0.00028219,2]
[322196206,1712869934232,-820.3,0.00028219,2]
[322196207,1712869934241,-500.0,0.00028219,2]
[322196208,1712869934251,-500.0,0.00028219,2]
[322196209,1712869934261,-500.0,0.00028219,2]
[322196210,1712869934271,-500.0,0.00028219,2]
[322196211,1712869934280,-500.0,0.00028219,2]
[322196212,1712869934290,-500.0,0.00028219,2]
[322196213,1712869934299,-500.0,0.00028219,2]
[322196214,1712869934309,-500.0,0.00028219,2]
[322196215,1712869934318,-500.0,0.00028219,2]
[322196216,1712869934328,-1352.31,0.00028219,2]
[322196217,1712869934337,-868.58,0.00028219,2]
[322196218,1712869934347,-500.0,0.00028219,2]
[322196219,1712869934356,-500.0,0.00028219,2]
[322196220,1712869934365,-500.0,0.00028219,2]
[322196221,1712869934375,-1263.1,0.00028219,2]
[322196222,1712869934387,-500.0,0.00028219,2]
[322196223,1712869934397,-1192.54,0.00028219,2]
[322196224,1712869934407,-811.44,0.00028219,2]
[322196225,1712869934417,-500.0,0.00028219,2]
[322196226,1712869934426,-500.0,0.00028219,2]
[322196227,1712869934436,-500.0,0.00028219,2]
[322196228,1712869934445,-1391.45,0.00028219,2]
[322196229,1712869934455,-609.69,0.00028219,2]
[322196230,1712869934465,-676.3,0.00028219,2]
[322196231,1712869934475,-430.45153174,0.00028219,2]
[322196232,1712869934485,-540.39,0.00028219,2]
[322196233,1712869934495,-1771.03,0.00028219,2]
[322196234,1712869934504,-500.0,0.00028219,2]
[322196235,1712869934513,-541.31,0.00028219,2]
[322196236,1712869934522,-1468.06,0.00028219,2]
[322196237,1712869934531,-500.0,0.00028219,2]
[322196238,1712869934541,-500.0,0.00028219,2]
[322196239,1712869934550,-862.27,0.00028219,2]
[322196240,1712869934559,-500.0,0.00028219,2]
[322196241,1712869934569,-1183.63,0.00028219,2]
[322196242,1712869934579,-500.0,0.00028219,2]
[322196243,1712869934589,-500.0,0.00028219,2]
[322196244,1712869934598,-500.0,0.00028219,2]
[322196245,1712869934608,-500.0,0.00028219,2]
[322196246,1712869934618,-500.0,0.00028219,2]
[322196247,1712869934627,-500.0,0.00028219,2]
[322196248,1712869934638,-500.0,0.00028219,2]
[322196249,1712869934647,-839.54,0.00028219,2]
[322196250,1712869934657,-500.0,0.00028219,2]
[322196251,1712869934666,-500.0,0.00028219,2]
[322196252,1712869934675,-1787.12,0.00028219,2]
[322196253,1712869934685,-500.0,0.00028219,2]
[322196254,1712869934694,-500.0,0.00028219,2]
[322196255,1712869934703,-500.0,0.00028219,2]
[322196256,1712869934713,-500.0,0.00028219,2]
[322196257,1712869934723,-500.0,0.00028219,2]
[322196258,1712869934732,-500.0,0.00028219,2]
[322196259,1712869934741,-1253.73,0.00028219,2]
[322196260,1712869934751,-500.0,0.00028219,2]
[322196261,1712869934760,-735.73,0.00028219,2]
[322196262,1712869934770,-500.0,0.00028219,2]
[322196263,1712869934779,-500.0,0.00028219,2]
[322196264,1712869934788,-500.0,0.00028219,2]
[322196265,1712869934798,-1318.44,0.00028219,2]
[322196266,1712869934807,-500.0,0.00028219,2]
[322196267,1712869934816,-500.0,0.00028219,2]
[322196268,1712869934826,-177.6593878,0.00028219,2]
[322196269,1712869934836,-500.0,0.00028219,2]
[322196270,1712869934845,-1495.11,0.00028219,2]
[322196271,1712869934855,-700.59,0.00028219,2]
[322196272,1712869934864,-209.54636017,0.00028219,2]
[322196273,1712869934873,-758.95,0.00028219,2]
[322196274,1712869934884,-500.0,0.00028219,2]
[322196275,1712869934893,-521.21,0.00028219,2]
[322196276,1712869934902,-500.0,0.00028219,2]
[322196277,1712869934911,-1654.67,0.00028219,2]
[322196278,1712869934921,-500.0,0.00028219,2]
[322196279,1712869934930,-500.0,0.00028219,2]
[322196280,1712869934940,-500.0,0.00028219,2]
[322196281,1712869934949,-638.47,0.00028219,2]
[322196282,1712869934958,-500.0,0.00028219,2]
[322196283,1712869934968,-1164.2,0.00028219,2]
[322196284,1712869934977,-500.0,0.00028219,2]
[322196285,1712869934986,-500.0,0.00028219,2]
[322196286,1712869934995,-500.0,0.00028219,2]
[322196287,1712869935005,-949.05,0.00028219,2]
[322196288,1712869935014,-500.0,0.00028219,2]
[322196289,1712869935023,-500.0,0.00028219,2]
[322196290,1712869935032,-500.0,0.00028219,2]
[322196291,1712869935042,-500.0,0.00028219,2]
[322196292,1712869935051,-500.0,0.00028219,2]
[322196293,1712869935060,-500.0,0.00028219,2]
[322196294,1712869935069,-1096.04,0.00028219,2]
[322196295,1712869935079,-777.64,0.00028219,2]
[322196296,1712869935088,-646.84,0.00028219,2]
[322196297,1712869935098,-500.0,0.00028219,2]
[322196298,1712869935107,-958.72,0.00028219,2]
[322196299,1712869935117,-500.0,0.00028219,2]
[322196300,1712869935126,-500.0,0.00028219,2]
[322196301,1712869935136,-683.7,0.00028219,2]
[322196302,1712869935145,-500.0,0.00028219,2]
[322196303,1712869935155,-500.0,0.00028219,2]
[322196304,1712869935165,-500.0,0.00028219,2]
[322196305,1712869935174,-897.54,0.00028219,2]
[322196306,1712869935183,-684.68,0.00028219,2]
[322196307,1712869935192,-500.0,0.00028219,2]
[322196308,1712869935201,-500.0,0.00028219,2]
[322196309,1712869935211,-500.0,0.00028219,2]
[322196310,1712869935220,-543.38,0.00028219,2]
[322196311,1712869935230,-500.0,0.00028219,2]
[322196312,1712869935238,-500.0,0.00028219,2]
[322196313,1712869935247,-809.17,0.00028219,2]
[322196314,1712869935257,-500.0,0.00028219,2]
[322196315,1712869935266,-698.14,0.00028219,2]
[322196316,1712869935275,-500.0,0.00028219,2]
[322196317,1712869935284,-500.0,0.00028219,2]
[322196318,1712869935294,-500.0,0.00028219,2]
[322196319,1712869935303,-1067.08,0.00028219,2]
[322196320,1712869935312,-500.0,0.00028219,2]
[322196321,1712869935321,-1021.38,0.00028219,2]
[322196322,1712869935331,-500.0,0.00028219,2]
[322196323,1712869935340,-784.4,0.00028219,2]
[322196324,1712869935349,-500.0,0.00028219,2]
[322196325,1712869935359,-1207.29,0.00028219,2]
[322196326,1712869935368,-853.95,0.00028219,2]
[322196327,1712869935380,-1154.75,0.00028219,2]
[322196328,1712869935391,-1500.39,0.00028219,2]
[322196329,1712869935400,-500.0,0.00028219,2]
[322196330,1712869935409,-500.0,0.00028219,2]
[322196331,1712869935419,-500.0,0.00028219,2]
[322196332,1712869935429,-1102.48,0.00028219,2]
[322196333,1712869935439,-500.0,0.00028219,2]
[322196334,1712869935448,-500.0,0.00028219,2]
[322196335,1712869935458,-1684.95,0.00028219,2]
[322196336,1712869935469,-864.47,0.00028219,2]
[322196337,1712869935479,-1050.08,0.00028219,2]
[322196338,1712869935489,-500.0,0.00028219,2]
[322196339,1712869935498,-500.0,0.00028219,2]
[322196340,1712869935508,-1060.45,0.00028219,2]
[322196341,1712869935518,-500.0,0.00028219,2]
[322196342,1712869935527,-727.49,0.00028219,2]
[322196343,1712869935536,-534.42,0.00028219,2]
[322196344,1712869935546,-500.0,0.00028219,2]
[322196345,1712869935556,-500.0,0.00028219,2]
[322196346,1712869935565,-500.0,0.00028219,2]
[322196347,1712869935574,-500.0,0.00028219,2]
[322196348,1712869935584,-598.73,0.00028219,2]
[322196349,1712869935593,-500.0,0.00028219,2]
[322196350,1712869935603,-1013.17,0.00028219,2]
[322196351,1712869935612,-500.0,0.00028219,2]
[322196352,1712869935621,-552.15,0.00028219,2]
[322196353,1712869935631,-722.75,0.00028219,2]
[322196354,1712869935641,-500.0,0.00028219,2]
[322196355,1712869935650,-500.0,0.00028219,2]
[322196356,1712869935659,-500.0,0.00028219,2]
[322196357,1712869935668,-1454.96,0.00028219,2]
[322196358,1712869935678,-585.74,0.00028219,2]
[322196359,1712869935687,-600.91,0.00028219,2]
[322196360,1712869935697,-627.17,0.00028219,2]
[322196361,1712869935707,-500.0,0.00028219,2]
[322196362,1712869935717,-500.0,0.00028219,2]
[322196363,1712869935726,-1870.66,0.00028219,2]
[322196364,1712869935736,-921.94,0.00028219,2]
[322196365,1712869935745,-500.0,0.00028219,2]
[322196366,1712869935754,-548.18556434,0.00028219,2]
[322196367,1712869935763,-500.0,0.00028219,2]
[322196368,1712869935773,-1288.35,0.00028219,2]
[322196369,1712869935782,-500.0,0.00028219,2]
[322196370,1712869935793,-670.72,0.00028219,2]
[322196371,1712869935802,-500.0,0.00028219,2]
[322196372,1712869935811,-1052.23,0.00028219,2]
[322196373,1712869935821,-500.0,0.00028219,2]
[322196374,1712869935830,-1720.31,0.00028219,2]
[322196375,1712869935840,-500.0,0.00028219,2]
[322196376,1712869935849,-500.0,0.00028219,2]
[322196377,1712869935859,-500.0,0.00028219,2]
[322196378,1712869935868,-2622.22,0.00028219,2]
[322196379,1712869935878,-500.0,0.00028219,2]
[322196380,1712869935889,-576.13513664,0.00028219,2]
[322196381,1712869935899,-1850.14,0.00028219,2]
[322196382,1712869935908,-500.0,0.00028219,2]
[322196383,1712869935917,-500.0,0.00028219,2]
[322196384,1712869935927,-500.0,0.00028219,2]
[322196385,1712869935936,-500.0,0.00028219,2]
[322196386,1712869935946,-500.0,0.00028219,2]
[322196387,1712869935955,-500.0,0.00028219,2]
[322196388,1712869935964,-300.0,0.00028219,2]
[322196389,1712869935973,-500.0,0.00028219,2]
[322196390,1712869935982,-500.0,0.00028219,2]
[322196391,1712869935992,-500.0,0.00028219,2]
[322196392,1712869936001,-869.29,0.00028219,2]
[322196393,1712869936010,-500.0,0.00028219,2]
[322196394,1712869936019,-500.0,0.00028219,2]
[322196395,1712869936029,-933.06,0.00028219,2]
[322196396,1712869936038,-722.11,0.00028219,2]
[322196397,1712869936048,-500.0,0.00028219,2]
[322196398,1712869936057,-500.0,0.00028219,2]
[322196399,1712869936066,-1172.68,0.00028219,2]
[322196400,1712869936076,-500.0,0.00028219,2]
[322196401,1712869936085,-500.0,0.00028219,2]
[322196402,1712869936095,-500.0,0.00028219,2]
[322196403,1712869936104,-500.0,0.00028219,2]
[322196404,1712869936113,-993.8,0.00028219,2]
[322196405,1712869936123,-1203.46,0.00028219,2]
[322196406,1712869936133,-500.0,0.00028219,2]
[322196407,1712869936142,-500.0,0.00028219,2]
[322196408,1712869936151,-330.73899374,0.00028219,2]
[322196409,1712869936161,-500.0,0.00028219,2]
[322196410,1712869936170,-500.0,0.00028219,2]
[322196411,1712869936179,-150.0,0.00028219,2]
[322196412,1712869936188,-500.0,0.00028219,2]
[322196413,1712869936197,-1318.86,0.00028219,2]
[322196414,1712869936206,-879.12,0.00028219,2]
[322196415,1712869936215,-1664.67,0.00028219,2]
[322196416,1712869936224,-500.0,0.00028219,2]
[322196417,1712869936234,-500.0,0.00028219,2]
[322196418,1712869936243,-500.0,0.00028219,2]
[322196419,1712869936252,-563.86,0.00028219,2]
[322196420,1712869936262,-500.0,0.00028219,2]
[322196421,1712869936271,-500.0,0.00028219,2]
[322196422,1712869936281,-553.15,0.00028219,2]
[322196423,1712869936290,-916.81,0.00028219,2]
[322196424,1712869936300,-923.4,0.00028219,2]
[322196425,1712869936309,-1597.09,0.00028219,2]
[322196426,1712869936318,-500.0,0.00028219,2]
[322196427,1712869936327,-500.0,0.00028219,2]
[322196428,1712869936337,-500.0,0.00028219,2]
[322196429,1712869936350,-500.0,0.00028219,2]
[322196430,1712869936359,-500.0,0.00028219,2]
[322196431,1712869936369,-500.0,0.00028219,2]
[322196432,1712869936381,-500.0,0.00028219,2]
[322196433,1712869936391,-500.0,0.00028219,2]
[322196434,1712869936401,-1225.4,0.00028219,2]
[322196435,1712869936410,-500.0,0.00028219,2]
[322196436,1712869936420,-500.0,0.00028219,2]
[322196437,1712869936430,-1736.6,0.00028219,2]
[322196438,1712869936439,-1687.78,0.00028219,2]
[322196439,1712869936449,-533.65,0.00028219,2]
[322196440,1712869936458,-500.0,0.00028219,2]
[322196441,1712869936468,-500.0,0.00028219,2]
[322196442,1712869936477,-500.0,0.00028219,2]
[322196443,1712869936486,-313.23139447,0.00028219,2]
[322196444,1712869936496,-554.27,0.00028219,2]
[322196445,1712869936505,-500.0,0.00028219,2]
[322196446,1712869936514,-892.21,0.00028219,2]
[322196447,1712869936524,-500.0,0.00028219,2]
[322196448,1712869936533,-698.09,0.00028219,2]
[322196449,1712869936543,-500.0,0.00028219,2]
[322196450,1712869936552,-500.0,0.00028219,2]
[322196451,1712869936561,-500.0,0.00028219,2]
[322196452,1712869936570,-500.0,0.00028219,2]
[322196453,1712869936579,-500.0,0.00028219,2]
[322196454,1712869936589,-500.0,0.00028219,2]
[322196455,1712869936598,-500.0,0.00028219,2]
[322196456,1712869936607,-1618.97,0.00028219,2]
[322196457,1712869936617,-500.0,0.00028219,2]
[322196458,1712869936626,-500.0,0.00028219,2]
[322196459,1712869936637,-500.0,0.00028219,2]
[322196460,1712869936646,-500.0,0.00028219,2]
[322196461,1712869936655,-500.0,0.00028219,2]
[322196462,1712869936665,-998.14,0.00028219,2]
[322196463,1712869936674,-500.0,0.00028219,2]
[322196464,1712869936684,-500.0,0.00028219,2]
[322196465,1712869936694,-500.0,0.00028219,2]
[322196466,1712869936703,-500.0,0.00028219,2]
[322196467,1712869936712,-1890.51,0.00028219,2]
[322196468,1712869936722,-827.22,0.00028219,2]
[322196469,1712869936731,-500.0,0.00028219,2]
[322196470,1712869936740,-500.0,0.00028219,2]
[322196471,1712869936750,-500.0,0.00028219,2]
[322196472,1712869936759,-500.0,0.00028219,2]
[322196473,1712869936769,-500.0,0.00028219,2]
[322196474,1712869936778,-500.0,0.00028219,2]
[322196475,1712869936788,-500.0,0.00028219,2]
[322196476,1712869936797,-500.0,0.00028219,2]
[322196477,1712869936807,-1646.03,0.00028219,2]
[322196478,1712869936816,-500.0,0.00028219,2]
[322196479,1712869936826,-911.48,0.00028219,2]
[322196480,1712869936835,-767.01,0.00028219,2]
[322196481,1712869936845,-1116.76,0.00028219,2]
[322196482,1712869936854,-500.0,0.00028219,2]
[322196483,1712869936864,-500.0,0.00028219,2]
[322196484,1712869936873,-570.82,0.00028219,2]
[322196485,1712869936884,-1022.77,0.00028219,2]
[322196486,1712869936894,-500.0,0.00028219,2]
[322196487,1712869936904,-500.0,0.00028219,2]
[322196488,1712869936913,-831.5,0.00028219,2]
[322196489,1712869936923,-680.97,0.00028219,2]
[322196490,1712869936932,-549.47474544,0.00028219,2]
[322196491,1712869936942,-500.0,0.00028219,2]
[322196492,1712869936951,-752.98,0.00028219,2]
[322196493,1712869936961,-500.0,0.00028219,2]
[322196494,1712869936971,-500.0,0.00028219,2]
[322196495,1712869936980,-500.0,0.00028219,2]
[322196496,1712869936990,-356.68302984,0.00028219,2]
[322196497,1712869937000,-500.0,0.00028219,2]
[322196498,1712869937010,-500.0,0.00028219,2]
[322196499,1712869937020,-500.0,0.00028219,2]
[322196500,1712869937030,-814.1,0.00028219,2]
[322196501,1712869937039,-1499.79,0.00028219,2]
[322196502,1712869937049,-7400.19,0.00028219,2]
[322196503,1712869937059,-500.0,0.00028219,2]
[322196504,1712869937068,-500.0,0.00028219,2]
[322196505,1712869937078,-1023.14,0.00028219,2]
[322196506,1712869937087,-700.72,0.00028219,2]
[322196507,1712869937098,-500.0,0.00028219,2]
[322196508,1712869937107,-565.73454749,0.00028219,2]
[322196509,1712869937117,-950.09,0.00028219,2]
[322196510,1712869937126,-1871.77,0.00028219,2]
[322196511,1712869937137,-500.0,0.00028219,2]
[322196512,1712869937146,-3724.71,0.00028219,2]
[322196513,1712869937155,-5395.14,0.00028219,2]
[322196514,1712869937165,-1464.27,0.00028219,2]
[322196515,1712869937174,-978.66,0.00028219,2]
[322196516,1712869937184,-500.0,0.00028219,2]
[322196517,1712869937193,-500.0,0.00028219,2]
[322196518,1712869937203,-500.0,0.00028219,2]
[322196519,1712869937213,-693.58,0.00028219,2]
[322196520,1712869937222,-500.0,0.00028219,2]
[322196521,1712869937232,-984.51,0.00028219,2]
[322196522,1712869937241,-584.5733401,0.00028219,2]
[322196523,1712869937251,-500.0,0.00028219,2]
[322196524,1712869937260,-500.0,0.00028219,2]
[322196525,1712869937269,-500.0,0.00028219,2]
[322196526,1712869937279,-500.0,0.00028219,2]
[322196527,1712869937289,-500.0,0.00028219,2]
[322196528,1712869937298,-500.0,0.00028219,2]
[322196529,1712869937308,-500.0,0.00028219,2]
[322196530,1712869937318,-500.0,0.00028219,2]
[322196531,1712869937328,-500.0,0.00028219,2]
[322196532,1712869937337,-4620.04,0.00028219,2]
[322196533,1712869937347,-500.0,0.00028219,2]
[322196534,1712869937356,-202.04442145,0.00028219,2]
[322196535,1712869937366,-934.17,0.00028219,2]
[322196536,1712869937376,-1543.03,0.00028219,2]
[322196537,1712869937389,-1300.92,0.00028219,2]
[322196538,1712869937398,-5425.41,0.00028219,2]
[322196539,1712869937408,-500.0,0.00028219,2]
[322196540,1712869937418,-500.0,0.00028219,2]
[322196541,1712869937428,-500.0,0.00028219,2]
[322196542,1712869937437,-1214.31,0.00028219,2]
[322196543,1712869937446,-500.0,0.00028219,2]
[322196544,1712869937456,-788.68,0.00028219,2]
[322196545,1712869937466,-500.0,0.00028219,2]
[322196546,1712869937476,-613.33,0.00028219,2]
[322196547,1712869937486,-500.0,0.00028219,2]
[322196548,1712869937495,-500.0,0.00028219,2]
[322196549,1712869937504,-827.37,0.00028219,2]
[322196550,1712869937513,-1948.7,0.00028219,2]
[322196551,1712869937523,-500.0,0.00028219,2]
[322196552,1712869937533,-500.0,0.00028219,2]
[322196553,1712869937543,-1593.55,0.00028219,2]
[322196554,1712869937552,-9749.83,0.00028219,2]
[322196555,1712869937562,-500.0,0.00028219,2]
[322196556,1712869937571,-500.0,0.00028219,2]
[322196557,1712869937580,-2131.76,0.00028219,2]
[322196558,1712869937590,-500.0,0.00028219,2]
[322196559,1712869937600,-500.0,0.00028219,2]
[322196560,1712869937609,-1560.14,0.00028219,2]
[322196561,1712869937619,-1518.32,0.00028219,2]
[322196562,1712869937628,-1413.3,0.00028219,2]
[322196563,1712869937639,-500.0,0.00028219,2]
[322196564,1712869937648,-661.44,0.00028219,2]
[322196565,1712869937658,-500.0,0.00028219,2]
[322196566,1712869937668,-5230.96,0.00028219,2]
[322196567,1712869937678,-2479.01,0.00028219,2]
[322196568,1712869937689,-500.0,0.00028219,2]
[322196569,1712869937698,-500.0,0.00028219,2]
[322196570,1712869937708,-3647.95,0.00028219,2]
[322196571,1712869937717,-1464.2,0.00028219,2]
[322196572,1712869937727,-505.28094179,0.00028219,2]
[322196573,1712869937736,-1527.36,0.00028219,2]
[322196574,1712869937745,-500.0,0.00028219,2]
[322196575,1712869937755,-500.0,0.00028219,2]
[322196576,1712869937765,-500.0,0.00028219,2]
[322196577,1712869937775,-1358.23,0.00028219,2]
[322196578,1712869937784,-1020.16,0.00028219,2]
[322196579,1712869937794,-11162.19,0.00028219,2]
[322196580,1712869937803,-500.0,0.00028219,2]
[322196581,1712869937812,-668.8,0.00028219,2]
[322196582,1712869937822,-500.0,0.00028219,2]
[322196583,1712869937832,-41084.78,0.00028219,2]
[322196584,1712869937841,-3874.31,0.00028219,2]
[322196585,1712869937851,-190.14132458,0.00028219,2]
[322196586,1712869937860,-500.0,0.00028219,2]
[322196587,1712869937870,-740.63,0.00028219,2]
[322196588,1712869937880,-500.0,0.00028219,2]
[322196589,1712869937891,-500.0,0.00028219,2]
[322196590,1712869937900,-270.21740544,0.00028219,2]
[322196591,1712869937910,-500.0,0.00028219,2]
[322196592,1712869937919,-500.0,0.00028219,2]
[322196593,1712869937929,-500.0,0.00028219,2]
[322196594,1712869937938,-500.0,0.00028219,2]
[322196595,1712869937948,-548.57,0.00028219,2]
[322196596,1712869937957,-1513.09,0.00028219,2]
[322196597,1712869937967,-7785.82,0.00028219,2]
[322196598,1712869937976,-8421.98,0.00028219,2]
[322196599,1712869937985,-567.17,0.00028219,2]
[322196600,1712869937995,-500.0,0.00028219,2]
[322196601,1712869938005,-3631.93,0.00028219,2]
[322196602,1712869938014,-3207.81,0.00028219,2]
[322196603,1712869938023,-12662.48,0.00028219,2]
[322196604,1712869938033,-500.0,0.00028219,2]
[322196605,1712869938043,-2311.09,0.00028219,2]
[322196606,1712869938052,-500.0,0.00028219,2]
[322196607,1712869938061,-500.0,0.00028219,2]
[322196608,1712869938071,-921.98,0.00028219,2]
[322196609,1712869938081,-500.0,0.00028219,2]
[322196610,1712869938091,-500.0,0.00028219,2]
[322196611,1712869938100,-500.0,0.00028219,2]
[322196612,1712869938110,-500.0,0.00028219,2]
[322196613,1712869938119,-1525.4,0.00028219,2]
[322196614,1712869938129,-500.0,0.00028219,2]
[322196615,1712869938139,-1851.69,0.00028219,2]
[322196616,1712869938148,-875.02,0.00028219,2]
[322196617,1712869938158,-3131.37,0.00028219,2]
[322196618,1712869938167,-7402.21,0.00028219,2]
[322196619,1712869938176,-320.75,0.00028219,2]
[322196620,1712869938186,-500.0,0.00028219,2]
[322196621,1712869938196,-500.0,0.00028219,2]
[322196622,1712869938206,-306.87,0.00028219,2]
[322196623,1712869938215,-2709.87,0.00028219,2]
[322196624,1712869938225,-500.0,0.00028219,2]
[322196625,1712869938234,-500.0,0.00028219,2]
[322196626,1712869938244,-500.0,0.00028219,2]
[322196627,1712869938254,-500.0,0.00028219,2]
[322196628,1712869938263,-1503.27,0.00028219,2]
[322196629,1712869938273,-500.0,0.00028219,2]
[322196630,1712869938283,-2499.54,0.00028219,2]
[322196631,1712869938293,-650.21,0.00028219,2]
[322196632,1712869938303,-500.0,0.00028219,2]
[322196633,1712869938313,-5388.34,0.00028219,2]
[322196634,1712869938323,-1676.04,0.00028219,2]
[322196635,1712869938333,-500.0,0.00028219,2]
[322196636,1712869938343,-2309.38,0.00028219,2]
[322196637,1712869938353,-643.01,0.00028219,2]
[322196638,1712869938363,-5653.29,0.00028219,2]
[322196639,1712869938373,-1703.86,0.00028219,2]
[322196640,1712869938387,-928.47,0.00028219,2]
[322196641,1712869938397,-500.0,0.00028219,2]
[322196642,1712869938407,-790.7,0.00028219,2]
[322196643,1712869938417,-500.0,0.00028219,2]
[322196644,1712869938427,-500.0,0.00028219,2]
[322196645,1712869938437,-2381.75,0.00028219,2]
[322196646,1712869938448,-852.74,0.00028219,2]
[322196647,1712869938459,-2994.14,0.00028219,2]
[322196648,1712869938469,-500.0,0.00028219,2]
[322196649,1712869938479,-500.0,0.00028219,2]
[322196650,1712869938489,-4680.33,0.00028219,2]
[322196651,1712869938499,-21256.33,0.00028219,2]
[322196652,1712869938509,-989.07,0.00028219,2]
[322196653,1712869938520,-2204.86,0.00028219,2]
[322196654,1712869938530,-5675.36,0.00028219,2]
[322196655,1712869938540,-500.0,0.00028219,2]